fUST/lending_fUST_20260111
["ID","MTS","AMOUNT","RATE_DAILY","PERIOD"]
[401271721,1768087850790,-692.1471151,0.00036979,2]
[401271722,1768087850800,-26755.0587371,0.00036979,2]
[401271723,1768087850809,-153.05659276,0.0003698,20]
[401271724,1768087850820,-151.0,0.0003698,14]
[401271725,1768087850830,-160.0,0.00037,120]
[401271726,1768087850840,-1041.66666667,0.00037,120]
[401271727,1768087850854,-1041.66666667,0.00037,10]
[401271728,1768087850863,-1041.66666667,0.00037,7]
[401271729,1768087850875,-2044.18983378,0.00037,2]
[401271730,1768087850884,-800.0,0.0003701,7]
[401271731,1768087850893,-151.0,0.00037019,28]
[401271732,1768087850904,-151.0,0.00037019,28]
[401271733,1768087850923,-315.18853,0.00037019,31]
[401271734,1768087850939,-315.18853,0.00037019,31]
[401271735,1768087850949,-315.18853,0.00037019,31]
[401271736,1768087850959,-315.18853,0.00037019,31]
[401271737,1768087850968,-315.18853,0.00037019,31]
[401271738,1768087850978,-315.18853,0.00037019,31]
[401271739,1768087850987,-315.18853,0.00037019,31]
[401271740,1768087850996,-315.188524,0.00037019,31]
[401271741,1768087851006,-151.0,0.00037019,31]
[401271742,1768087851015,-214.28838,0.00037019,31]
[401271743,1768087851025,-479.331389,0.00037019,31]
[401271744,1768087851035,-479.33138,0.00037019,31]
[401271745,1768087851044,-151.895159,0.00037019,31]
[401271746,1768087851054,-151.895159,0.00037019,31]
[401271747,1768087851063,-151.895159,0.00037019,31]
[401271748,1768087851072,-151.895159,0.00037019,31]
[401271749,1768087851082,-151.895159,0.00037019,31]
[401271750,1768087851092,-151.895159,0.00037019,31]
[401271751,1768087851101,-151.895159,0.00037019,31]
[401271752,1768087851111,-151.895151,0.00037019,31]
[401271753,1768087851124,-211.591357,0.00037019,31]
[401271754,1768087851134,-151.0,0.00037019,31]
[401271755,1768087851144,-157.126084,0.00037019,31]
[401271756,1768087851154,-245.445707,0.00037019,31]
[401271757,1768087851164,-245.445707,0.00037019,31]
[401271758,1768087851174,-245.445707,0.00037019,31]
[401271759,1768087851183,-245.445707,0.00037019,31]
[401271760,1768087851193,-245.445707,0.00037019,31]
[401271761,1768087851203,-245.445707,0.00037019,31]
[401271762,1768087851212,-245.445707,0.00037019,31]
[401271763,1768087851221,-245.445699,0.00037019,31]
[401271764,1768087851231,-151.0,0.00037019,31]
[401271765,1768087851241,-162.614017,0.00037019,31]
[401271766,1768087851250,-1235517.50561924,0.00037019,20]
[401271767,1768087851382,-723.48069496,0.00036622,2]
[401271768,1768087851393,-1554.47805157,0.00036622,2]
[401271769,1768087851404,-723.96416194,0.00036622,2]
[401271770,1768087851505,-359.498542,0.0003322,31]
[401271771,1768087851514,-99.76238884,0.00036082,30]
[401271813,1768088461128,150.0,7.107e-05,2]
[401271860,1768088590823,150.0,6.204e-05,2]
[401271861,1768088591254,150.0,6.5e-05,2]
[401271863,1768088591667,150.0,6.795e-05,2]
[401271864,1768088592190,150.0,7.09e-05,2]
[401271865,1768088592594,150.0,7.386e-05,2]
[401271958,1768089032203,-570.0,0.00010668,2]
[401271959,1768089032213,-346.45032629,0.00010668,2]
[401271960,1768089032223,-50.70887371,0.00010668,2]
[401271961,1768089032241,-2582.28786819,0.00010668,2]
[401271962,1768089032251,-300.0,0.00011534,2]
[401271963,1768089032261,-29471.08384452,0.00011535,2]
[401271964,1768089032272,-292.93661377,0.00011535,2]
[401271968,1768089038336,-970235.97954171,0.00011535,2]
[401271969,1768089038346,-151.0,0.000116,2]
[401271970,1768089038355,-151.0,0.000116,2]
[401271971,1768089038365,-151.0,0.000116,2]
[401271972,1768089038375,-232.19045022,0.00011635,2]
[401271973,1768089038385,-500.0,0.00011635,2]
[401271974,1768089038394,-259.56553723,0.00011635,2]
[401271975,1768089038404,-388.59461379,0.00011635,2]
[401271976,1768089038413,-609.72751552,0.00011635,2]
[401271977,1768089038423,-1283.61559644,0.00011768,2]
[401271978,1768089038433,-19704.81319266,0.0001185,2]
[401271979,1768089038443,-300.0,0.00011868,2]
[401271980,1768089038452,-300.0,0.00011868,2]
[401271981,1768089038463,-300.0,0.00011868,2]
[401271982,1768089038473,-300.0,0.00011868,2]
[401271983,1768089038483,-300.0,0.00011868,2]
[401271984,1768089038493,-300.0,0.00011868,2]
[401271985,1768089038503,-300.0,0.00011868,2]
[401271986,1768089038513,-300.0,0.00011868,2]
[401271987,1768089038522,-300.0,0.00011868,2]
[401271989,1768089038532,-300.0,0.00011868,2]
[401271990,1768089038541,-300.0,0.00011868,2]
[401271992,1768089038551,-300.0,0.00011868,2]
[401271994,1768089038561,-300.0,0.00011868,2]
[401271995,1768089038571,-300.0,0.00011868,2]
[401271996,1768089038583,-300.0,0.00011868,2]
[401271997,1768089038594,-600.0,0.00011868,2]
[401271998,1768089038603,-500.0,0.00012055,2]
[401271999,1768089038616,-258.0,0.00012055,2]
[401272000,1768089038627,-150.0,0.00012055,2]
[401272001,1768089038636,-500.0,0.00012055,2]
[401272002,1768089038779,-150.0,0.00012055,2]
[401272003,1768089038789,-500.0,0.00012192,2]
[401272004,1768089038799,-500.0,0.00012192,2]
[401272005,1768089038808,-250.0,0.00012192,2]
[401272006,1768089038818,-150.0,0.00012192,2]
[401272007,1768089038828,-500.0,0.00012329,2]
[401272008,1768089038839,-500.0,0.00012329,2]
[401272009,1768089038848,-153.05659276,0.00012329,2]
[401272010,1768089038858,-150.0,0.00012329,2]
[401272011,1768089038868,-150.0,0.00012329,2]
[401272012,1768089038879,-150.0,0.00012329,2]
[401272013,1768089038889,-1096.46685309,0.00012329,2]
[401272014,1768089038899,-1096.46685309,0.00012329,2]
[401272015,1768089038909,-1096.46685309,0.00012329,2]
[401272016,1768089038919,-1096.46685309,0.00012329,2]
[401272017,1768089038929,-1096.46685309,0.00012329,2]
[401272018,1768089038938,-1096.46685309,0.00012329,2]
[401272019,1768089038947,-1096.46685309,0.00012329,2]
[401272020,1768089038957,-1096.46685309,0.00012329,2]
[401272021,1768089038966,-1096.46685309,0.00012329,2]
[401272022,1768089038976,-1096.46685309,0.00012329,2]
[401272023,1768089038986,-1096.46685309,0.00012329,2]
[401272024,1768089038996,-1096.46685309,0.00012329,2]
[401272025,1768089039005,-1096.46685309,0.00012329,2]
[401272026,1768089039015,-1096.46685309,0.00012329,2]
[401272027,1768089039024,-1096.46685309,0.00012329,2]
[401272028,1768089039034,-1096.46685309,0.00012329,2]
[401272029,1768089039044,-1096.46685309,0.00012329,2]
[401272030,1768089039053,-1096.46685309,0.00012329,2]
[401272031,1768089039063,-1096.46685309,0.00012329,2]
[401272032,1768089039073,-1096.46685309,0.00012329,2]
[401272033,1768089039082,-1096.46685309,0.00012329,2]
[401272034,1768089039091,-1096.46685309,0.00012329,2]
[401272035,1768089039101,-1096.46685309,0.00012329,2]
[401272036,1768089039110,-1096.46685309,0.00012329,2]
[401272037,1768089039120,-1096.46685309,0.00012329,2]
[401272038,1768089039130,-1096.46685309,0.00012329,2]
[401272039,1768089039140,-1096.46685309,0.00012329,2]
[401272040,1768089039149,-1096.46685309,0.00012329,2]
[401272041,1768089039159,-1096.46685309,0.00012329,2]
[401272042,1768089039168,-1096.46685309,0.00012329,2]
[401272043,1768089039177,-1096.46685309,0.00012329,2]
[401272044,1768089039187,-1096.46685309,0.00012329,2]
[401272045,1768089039196,-1096.46685309,0.00012329,2]
[401272046,1768089039206,-1096.46685309,0.00012329,2]
[401272047,1768089039215,-1096.46685309,0.00012329,2]
[401272048,1768089039225,-1096.46685309,0.00012329,2]
[401272049,1768089039246,-1096.46685309,0.00012329,2]
[401272050,1768089039256,-1096.46685309,0.00012329,2]
[401272051,1768089039266,-1096.46685309,0.00012329,2]
[401272052,1768089039276,-1096.46685309,0.00012329,2]
[401272053,1768089039287,-1096.46685309,0.00012329,2]
[401272054,1768089039297,-1096.46685309,0.00012329,2]
[401272055,1768089039307,-1096.46685309,0.00012329,2]
[401272056,1768089039317,-1096.46685309,0.00012329,2]
[401272057,1768089039326,-1096.46685309,0.00012329,2]
[401272058,1768089039337,-1096.46685309,0.00012329,2]
[401272059,1768089039347,-1096.46685309,0.00012329,2]
[401272060,1768089039359,-1096.46685309,0.00012329,2]
[401272061,1768089039369,-1096.46685309,0.00012329,2]
[401272062,1768089039380,-1096.46685309,0.00012329,2]
[401272063,1768089039390,-1096.46685309,0.00012329,2]
[401272064,1768089039400,-1093.50342916,0.00012329,2]
[401272065,1768089039409,-1093.50342916,0.00012329,2]
[401272066,1768089039419,-1093.50342916,0.00012329,2]
[401272067,1768089039430,-1093.50342916,0.00012329,2]
[401272068,1768089039439,-1093.50342916,0.00012329,2]
[401272069,1768089039449,-1093.50342916,0.00012329,2]
[401272070,1768089039459,-1093.50342916,0.00012329,2]
[401272071,1768089039468,-1093.50342916,0.00012329,2]
[401272072,1768089039478,-1093.50342916,0.00012329,2]
[401272073,1768089039489,-1093.50342916,0.00012329,2]
[401272074,1768089039499,-1093.50342916,0.00012329,2]
[401272075,1768089039509,-1093.50342916,0.00012329,2]
[401272076,1768089039518,-1093.50342916,0.00012329,2]
[401272077,1768089039531,-1093.50342916,0.00012329,2]
[401272078,1768089039541,-1093.50342916,0.00012329,2]
[401272079,1768089039551,-1093.50342916,0.00012329,2]
[401272080,1768089039561,-1093.50342916,0.00012329,2]
[401272081,1768089039570,-1093.50342916,0.00012329,2]
[401272082,1768089039583,-1093.50342916,0.00012329,2]
[401272083,1768089039593,-1093.50342916,0.00012329,2]
[401272084,1768089039602,-1093.50342916,0.00012329,2]
[401272085,1768089039612,-1093.50342916,0.00012329,2]
[401272086,1768089039622,-1093.50342916,0.00012329,2]
[401272087,1768089039631,-1093.50342916,0.00012329,2]
[401272088,1768089039640,-1093.50342916,0.00012329,2]
[401272089,1768089039650,-1093.50342916,0.00012329,2]
[401272090,1768089039660,-1093.50342916,0.00012329,2]
[401272091,1768089039670,-1093.50342916,0.00012329,2]
[401272092,1768089039680,-1093.50342916,0.00012329,2]
[401272093,1768089039689,-1093.50342917,0.00012329,2]
[401272094,1768089039699,-1093.50342917,0.00012329,2]
[401272095,1768089039708,-1093.50342917,0.00012329,2]
[401272096,1768089039717,-1093.50342917,0.00012329,2]
[401272097,1768089039726,-1093.50342917,0.00012329,2]
[401272098,1768089039740,-1093.50342917,0.00012329,2]
[401272099,1768089039750,-1093.50342917,0.00012329,2]
[401272100,1768089039760,-1093.50342917,0.00012329,2]
[401272101,1768089039770,-500.0,0.00012329,2]
[401272102,1768089039787,-500.0,0.00012466,2]
[401272103,1768089039796,-500.0,0.00012466,2]
[401272104,1768089039806,-200.0,0.00012466,2]
[401272105,1768089039815,-150.0,0.00012466,2]
[401272106,1768089039825,-200.0,0.00012603,2]
[401272107,1768089039835,-500.0,0.00012603,2]
[401272108,1768089039844,-150.0,0.00012603,2]
[401272109,1768089039854,-420.0,0.00012668,2]
[401272110,1768089039863,-408.81138502,0.00012668,2]
[401272111,1768089039873,-500.0,0.0001274,2]
[401272112,1768089039882,-200.0,0.0001274,2]
[401272113,1768089039891,-250.0,0.0001274,2]
[401272114,1768089039901,-500.0,0.00012877,2]
[401272115,1768089039917,-639.65888898,0.00013014,2]
[401272116,1768089039932,-720.0,0.00013054,2]
[401272117,1768089039941,-500.40880935,0.00013273,2]
[401272118,1768089039951,-500.84386104,0.00013273,2]
[401272119,1768089039960,-500.0,0.00013273,2]
[401272120,1768089039969,-500.0,0.00013273,2]
[401272121,1768089039979,-500.0,0.00013273,2]
[401272122,1768089039989,-500.0,0.00013273,2]
[401272124,1768089040001,-500.0,0.00013273,2]
[401272125,1768089040011,-500.0,0.00013273,2]
[401272126,1768089040021,-500.0,0.00013273,2]
[401272128,1768089040030,-500.0,0.00013273,2]
[401272129,1768089040040,-500.0,0.00013273,2]
[401272130,1768089040052,-500.0,0.00013273,2]
[401272131,1768089040063,-500.0,0.00013273,2]
[401272132,1768089040074,-500.0,0.00013273,2]
[401272133,1768089040085,-500.0,0.00013273,2]
[401272134,1768089040099,-500.0,0.00013273,2]
[401272135,1768089040110,-500.0,0.00013273,2]
[401272136,1768089040121,-500.0,0.00013273,2]
[401272137,1768089040131,-500.0,0.00013273,2]
[401272138,1768089040140,-500.0,0.00013273,2]
[401272139,1768089040150,-500.0,0.00013273,2]
[401272140,1768089040160,-500.0,0.00013273,2]
[401272141,1768089040169,-500.0,0.00013273,2]
[401272142,1768089040178,-500.24269708,0.00013273,2]
[401272143,1768089040188,-500.0,0.00013273,2]
[401272144,1768089040198,-500.66277805,0.00013273,2]
[401272145,1768089040208,-500.0,0.00013273,2]
[401272146,1768089040218,-500.0,0.00013273,2]
[401272147,1768089040227,-500.0,0.00013273,2]
[401272148,1768089040238,-500.0,0.00013273,2]
[401272149,1768089040248,-323.03430659,0.00013273,2]
[401272150,1768089040259,-500.0,0.00013273,2]
[401272151,1768089040269,-500.0,0.00013273,2]
[401272152,1768089040278,-500.0,0.00013273,2]
[401272153,1768089040288,-500.0,0.00013273,2]
[401272154,1768089040298,-500.0,0.00013273,2]
[401272155,1768089040308,-501.21467235,0.00013273,2]
[401272156,1768089040317,-500.0,0.00013273,2]
[401272157,1768089040327,-500.0,0.00013273,2]
[401272158,1768089040337,-500.0,0.00013273,2]
[401272159,1768089040347,-500.0,0.00013273,2]
[401272160,1768089040356,-500.0,0.00013273,2]
[401272161,1768089040366,-500.0,0.00013273,2]
[401272162,1768089040376,-381.3437256,0.0001329,2]
[401272163,1768089040385,-300.0,0.00013673,2]
[401272164,1768089040395,-500.0,0.00013698,2]
[401272165,1768089040404,-500.0,0.00013698,2]
[401272166,1768089040414,-500.0,0.00013698,2]
[401272167,1768089040423,-500.0,0.00013698,2]
[401272168,1768089040435,-500.0,0.00013698,2]
[401272169,1768089040445,-500.0,0.00013698,2]
[401272170,1768089040455,-500.0,0.00013698,2]
[401272172,1768089040464,-500.0,0.00013698,2]
[401272175,1768089040474,-239.37126777,0.00013698,2]
[401272176,1768089040485,-2001.305979,0.00013699,2]
[401272179,1768089040495,-500.0,0.00013699,2]
[401272181,1768089040505,-500.0,0.00013699,2]
[401272183,1768089040515,-500.0,0.00013699,2]
[401272185,1768089040524,-469.53593685,0.00013699,2]
[401272187,1768089040534,-500.0,0.00013699,2]
[401272189,1768089040544,-500.0,0.00013699,2]
[401272191,1768089040553,-500.0,0.00013699,2]
[401272193,1768089040563,-500.0,0.00013699,2]
[401272195,1768089040572,-500.0,0.00013699,2]
[401272197,1768089040585,-500.0,0.00013699,2]
[401272199,1768089040594,-500.0,0.00013699,2]
[401272201,1768089040605,-500.0,0.00013699,2]
[401272202,1768089040615,-283.3787305,0.00013699,2]
[401272204,1768089040625,-500.0,0.00013699,2]
[401272207,1768089040636,-500.0,0.00013699,2]
[401272208,1768089040645,-500.0,0.00013699,2]
[401272211,1768089040657,-500.0,0.00013699,2]
[401272212,1768089040668,-252.81793801,0.00013699,2]
[401272215,1768089040679,-500.0,0.00013699,2]
[401272217,1768089040691,-500.0,0.00013699,2]
[401272218,1768089040701,-500.0,0.00013699,2]
[401272220,1768089040713,-500.0,0.00013699,2]
[401272223,1768089040723,-500.0,0.00013699,2]
[401272224,1768089040732,-500.0,0.00013699,2]
[401272227,1768089040742,-500.0,0.00013699,2]
[401272229,1768089040752,-500.0,0.00013699,2]
[401272231,1768089040761,-500.0,0.00013699,2]
[401272233,1768089040770,-500.0,0.00013699,2]
[401272236,1768089040779,-500.0,0.00013699,2]
[401272239,1768089040789,-250.0,0.00013699,2]
[401272241,1768089040798,-500.0,0.00013699,2]
[401272243,1768089040808,-500.0,0.00013699,2]
[401272244,1768089040821,-500.0,0.00013699,2]
[401272246,1768089040831,-500.0,0.00013699,2]
[401272248,1768089040840,-500.0,0.00013699,2]
[401272250,1768089040850,-500.0,0.00013699,2]
[401272252,1768089040861,-366.95119537,0.00013699,2]
[401272254,1768089040870,-500.0,0.00013699,2]
[401272257,1768089040884,-500.0,0.00013699,2]
[401272259,1768089040893,-500.0,0.00013699,2]
[401272261,1768089040903,-441.79967602,0.00013699,2]
[401272263,1768089040912,-268.13097792,0.00013699,2]
[401272265,1768089040921,-500.0,0.00013699,2]
[401272267,1768089040930,-295.9151759,0.00013699,2]
[401272269,1768089040940,-501.32276914,0.00013699,2]
[401272271,1768089040951,-500.0,0.00013699,2]
[401272273,1768089040960,-500.0,0.00013699,2]
[401272275,1768089040969,-500.0,0.00013699,2]
[401272277,1768089040978,-500.0,0.00013699,2]
[401272279,1768089040988,-500.0,0.00013699,2]
[401272281,1768089040997,-500.0,0.00013699,2]
[401272283,1768089041007,-500.0,0.00013699,2]
[401272285,1768089041016,-500.0,0.00013699,2]
[401272286,1768089041026,-500.0,0.00013699,2]
[401272289,1768089041037,-500.0,0.00013699,2]
[401272291,1768089041048,-500.0,0.00013699,2]
[401272293,1768089041057,-500.66295379,0.00013699,2]
[401272295,1768089041067,-500.0,0.00013699,2]
[401272297,1768089041076,-500.0,0.00013699,2]
[401272299,1768089041085,-500.0,0.00013699,2]
[401272301,1768089041095,-500.0,0.00013699,2]
[401272303,1768089041104,-1085.07319625,0.00013713,2]
[401272305,1768089041114,-1000.0,0.00013821,2]
[401272308,1768089041134,-544.98070057,0.00013821,2]
[401272310,1768089041145,-1113.91769968,0.00013821,2]
[401272312,1768089041154,-1000.0,0.00013821,2]
[401272313,1768089041164,-1000.0,0.00013821,2]
[401272315,1768089041174,-1000.0,0.00013821,2]
[401272317,1768089041183,-1000.0,0.00013821,2]
[401272319,1768089041193,-761.64122828,0.00013821,2]
[401272321,1768089041202,-568.99927688,0.00013821,2]
[401272323,1768089041213,-1000.0,0.00013821,2]
[401272325,1768089041223,-1000.0,0.00013821,2]
[401272327,1768089041232,-1000.0,0.00013821,2]
[401272329,1768089041242,-1000.0,0.00013821,2]
[401272331,1768089041251,-667.6319526,0.00013821,2]
[401272333,1768089041261,-300.04302299,0.00013821,2]
[401272335,1768089041270,-796.30755519,0.00013821,2]
[401272337,1768089041280,-177.89646739,0.00013821,2]
[401272339,1768089041290,-1000.0,0.00013821,2]
[401272341,1768089041300,-1000.0,0.00013821,2]
[401272343,1768089041309,-1000.0,0.00013821,2]
[401272345,1768089041319,-588.2860466,0.00013821,2]
[401272347,1768089041328,-1000.0,0.00013821,2]
[401272349,1768089041338,-1010.98739129,0.00013821,2]
[401272351,1768089041348,-500.0,0.00013821,2]
[401272353,1768089041358,-1000.0,0.00013821,2]
[401272355,1768089041368,-723.48736773,0.00013821,2]
[401272357,1768089041378,-1000.0,0.00013821,2]
[401272360,1768089041388,-1000.0,0.00013821,2]
[401272361,1768089041399,-1000.0,0.00013821,2]
[401272363,1768089041408,-1000.0,0.00013821,2]
[401272365,1768089041418,-1000.0,0.00013821,2]
[401272368,1768089041428,-1000.0,0.00013821,2]
[401272369,1768089041438,-1000.0,0.00013821,2]
[401272371,1768089041447,-973.2526551,0.00013821,2]
[401272374,1768089041457,-587.0,0.00013913,2]
[401272375,1768089041466,-250.0,0.00014096,2]
[401272377,1768089041481,-592.17170494,0.00014183,2]
[401272380,1768089041491,-600.0,0.00014221,2]
[401272382,1768089041501,-501.75744597,0.00014247,2]
[401272383,1768089041511,-500.0,0.00014247,2]
[401272386,1768089041521,-1000.0,0.00014247,2]
[401272388,1768089041530,-1000.0,0.00014247,2]
[401272390,1768089041540,-313.64870907,0.00014247,2]
[401272391,1768089041549,-1000.0,0.00014247,2]
[401272393,1768089041559,-1000.0,0.00014247,2]
[401272395,1768089041569,-1000.0,0.00014247,2]
[401272397,1768089041579,-1000.0,0.00014247,2]
[401272399,1768089041592,-1000.0,0.00014247,2]
[401272401,1768089041602,-1029.61129365,0.00014247,2]
[401272403,1768089041612,-374.8306527,0.00014247,2]
[401272405,1768089041623,-500.0,0.00014247,2]
[401272407,1768089041633,-500.0,0.00014247,2]
[401272409,1768089041642,-501.8641087,0.00014247,2]
[401272411,1768089041652,-503.14554213,0.00014247,2]
[401272427,1768089041662,-500.62599215,0.00014247,2]
[401272429,1768089041804,-1000.0,0.00014247,2]
[401272431,1768089041815,-655.09397851,0.00014247,2]
[401272433,1768089041824,-730.23234032,0.00014247,2]
[401272435,1768089041834,-1000.0,0.00014247,2]
[401272437,1768089041843,-1000.0,0.00014247,2]
[401272438,1768089041852,-1000.0,0.00014247,2]
[401272440,1768089041861,-1000.0,0.00014247,2]
[401272442,1768089041871,-501.33075681,0.00014247,2]
[401272444,1768089041880,-615.04672569,0.00014247,2]
[401272446,1768089041889,-443.77041137,0.00014247,2]
[401272448,1768089041899,-1000.0,0.00014247,2]
[401272450,1768089041908,-1000.0,0.00014247,2]
[401272452,1768089041917,-1000.0,0.00014247,2]
[401272454,1768089041926,-500.0,0.00014247,2]
[401272456,1768089041935,-1000.0,0.00014247,2]
[401272458,1768089041945,-1000.0,0.00014247,2]
[401272460,1768089041954,-500.0,0.00014247,2]
[401272462,1768089041963,-1000.0,0.00014247,2]
[401272464,1768089041972,-1000.0,0.00014247,2]
[401272466,1768089041981,-1000.76011771,0.00014247,2]
[401272468,1768089041990,-1012.33435394,0.00014247,2]
[401272469,1768089041999,-1000.0,0.00014247,2]
[401272471,1768089042008,-1003.80919542,0.00014247,2]
[401272473,1768089042017,-1000.0,0.00014247,2]
[401272475,1768089042026,-500.0,0.00014247,2]
[401272477,1768089042035,-1000.0,0.00014247,2]
[401272479,1768089042044,-1000.0,0.00014247,2]
[401272481,1768089042054,-864.0,0.0001436,2]
[401272483,1768089042063,-500.0,0.00014368,2]
[401272485,1768089042072,-1000.0,0.00014368,2]
[401272487,1768089042081,-693.44978993,0.00014368,2]
[401272489,1768089042091,-1452.94469565,0.00014368,2]
[401272491,1768089042100,-660.64782172,0.00014368,2]
[401272493,1768089042109,-1000.0,0.00014368,2]
[401272495,1768089042118,-1500.0,0.00014368,2]
[401272497,1768089042127,-1006.74415815,0.00014368,2]
[401272498,1768089042136,-1500.0,0.00014368,2]
[401272500,1768089042145,-1500.0,0.00014368,2]
[401272502,1768089042154,-1500.0,0.00014368,2]
[401272504,1768089042163,-1500.0,0.00014368,2]
[401272506,1768089042173,-1500.0,0.00014368,2]
[401272508,1768089042181,-1500.0,0.00014368,2]
[401272510,1768089042190,-1000.0,0.00014368,2]
[401272512,1768089042200,-1500.0,0.00014368,2]
[401272514,1768089042207,-1000.0,0.00014368,2]
[401272516,1768089042215,-5000.0,0.0001451,2]
[401272518,1768089042224,-471.17244376,0.00014668,2]
[401272520,1768089042233,-445.01,0.00014668,2]
[401272522,1768089042242,-100000.0,0.00014736,2]
[401272523,1768089042252,-900.0,0.00014768,2]
[401272525,1768089042261,-602.53259662,0.00014795,2]
[401272527,1768089042270,-1498.9723282,0.00014795,2]
[401272529,1768089042279,-661.95893033,0.00014795,2]
[401272531,1768089042288,-1500.0,0.00014795,2]
[401272533,1768089042297,-1500.0,0.00014795,2]
[401272535,1768089042306,-1500.0,0.00014795,2]
[401272537,1768089042316,-1514.12213244,0.00014795,2]
[401272539,1768089042325,-500.0,0.00014795,2]
[401272541,1768089042334,-501.3782102,0.00014795,2]
[401272543,1768089042344,-488.64589349,0.00014795,2]
[401272545,1768089042353,-188.14121233,0.00014795,2]
[401272547,1768089042362,-482.84709438,0.00014795,2]
[401272549,1768089042371,-608.00999349,0.00014795,2]
[401272551,1768089042381,-506.84567032,0.00014795,2]
[401272553,1768089042390,-1504.51727604,0.00014795,2]
[401272555,1768089042399,-640.67728986,0.00014795,2]
[401272557,1768089042408,-1140.84533084,0.00014795,2]
[401272559,1768089042418,-1500.0,0.00014795,2]
[401272561,1768089042427,-1500.0,0.00014795,2]
[401272563,1768089042436,-1500.0,0.00014795,2]
[401272565,1768089042446,-1644.01857865,0.00014795,2]
[401272566,1768089042455,-2000.0,0.00014916,2]
[401272569,1768089042465,-2000.0,0.00014916,2]
[401272570,1768089042474,-2000.0,0.00014916,2]
[401272573,1768089042484,-1000.0,0.00014916,2]
[401272574,1768089042494,-2000.0,0.00014916,2]
[401272576,1768089042503,-2000.0,0.00014916,2]
[401272578,1768089042512,-1851.48708989,0.00014916,2]
[401272580,1768089042521,-1000.0,0.00015,2]
[401272582,1768089042530,-545.914549,0.00015068,2]
[401272584,1768089042540,-779.0,0.0001528,2]
[401272586,1768089042549,-900.0,0.00015316,2]
[401272588,1768089042559,-1041.12357041,0.00015342,2]
[401272590,1768089042568,-2000.0,0.00015342,2]
[401272592,1768089042577,-1000.0,0.00015342,2]
[401272594,1768089042590,-634.65901332,0.00015342,2]
[401272596,1768089042599,-1000.0,0.00015342,2]
[401272598,1768089042608,-1657.93100212,0.00015464,2]
[401272600,1768089042618,-2500.0,0.00015464,2]
[401272602,1768089042628,-1000.0,0.00015464,2]
[401272604,1768089042638,-1000.0,0.00015464,2]
[401272606,1768089042648,-1000.0,0.00015796,2]
[401272608,1768089042658,-1000.0,0.0001589,2]
[401272610,1768089042668,-380.1,0.00016438,2]
[401272612,1768089042677,-594.49843147,0.00016438,2]
[401272614,1768089042687,-260.11060349,0.00016438,2]
[401272616,1768089042696,-533.53350249,0.00016668,2]
[401272618,1768089042705,-1283.61559644,0.00017106,2]
[401272620,1768089042714,-1000.0,0.00017375,2]
[401272622,1768089042724,-244.0,0.00017375,2]
[401272624,1768089042733,-3382.93313115,0.00017412,2]
[401272626,1768089042743,-380.1,0.00018317,2]
[401272628,1768089042753,-545.914549,0.00018493,2]
[401272630,1768089042762,-595.89456122,0.00018668,2]
[401272632,1768089042771,-303.10001603,0.000189,2]
[401272634,1768089042780,-303.10001603,0.000189,2]
[401272636,1768089042789,-303.10001603,0.00019089,2]
[401272638,1768089042799,-303.10001603,0.00019089,2]
[401272639,1768089042809,-1000.0,0.00019113,2]
[401272641,1768089042818,-492.0,0.00019113,2]
[401272643,1768089042827,-844.4907,0.00019178,2]
[401272645,1768089042837,-1845.46,0.000192,2]
[401272647,1768089042846,-167.58,0.000192,2]
[401272649,1768089042856,-166.96,0.000192,2]
[401272651,1768089042865,-163.88,0.000192,2]
[401272653,1768089042873,-11484.62,0.000192,2]
[401272655,1768089042883,-303.10001603,0.00019278,2]
[401272657,1768089042893,-303.10001603,0.00019278,2]